fUST/lending_fUST_20250127
["ID","MTS","AMOUNT","RATE_DAILY","PERIOD"]
[350515948,1737939051555,-302.96970909,0.0001976,2]
[350515949,1737939051565,-350.53878227,0.00019797,2]
[350515952,1737939051575,-8017.69,0.000198,2]
[350515954,1737939051584,-2430.89188375,0.000198,2]
[350515956,1737939051594,-154.0,0.00019831,2]
[350515958,1737939051603,-154.0,0.00019831,2]
[350515960,1737939051613,-154.0,0.00019831,2]
[350515962,1737939051623,-154.0,0.00019831,2]
[350515963,1737939051632,-154.0,0.00019831,2]
[350515965,1737939051642,-500.0,0.00019863,9]
[350515967,1737939051652,-2762.00906107,0.00019888,7]
[350515969,1737939051662,-5269.46425137,0.000199,2]
[350515971,1737939051672,-454.45456363,0.0001995,4]
[350515973,1737939051682,-350.53878227,0.00019969,2]
[350515975,1737939051691,-500.0,0.00019973,2]
[350515977,1737939051702,-500.0,0.00019973,2]
[350515979,1737939051712,-500.0,0.00019973,2]
[350515981,1737939051722,-500.0,0.00019973,2]
[350515983,1737939051731,-500.0,0.00019973,2]
[350515985,1737939051743,-560.98048866,0.00019973,2]
[350515987,1737939051753,-500.0,0.0001998,2]
[350515989,1737939051762,-152.0,0.00019992,2]
[350515991,1737939051772,-152.0,0.00019992,2]
[350515993,1737939051781,-223.64,0.00019992,2]
[350515995,1737939051791,-153.0,0.00019992,2]
[350515997,1737939051802,-153.0,0.00019992,2]
[350515999,1737939051811,-153.0,0.00019992,2]
[350516001,1737939051821,-152.0,0.00019997,2]
[350516003,1737939051831,-152.0,0.00019997,2]
[350516005,1737939051841,-152.0,0.00019997,2]
[350516007,1737939051852,-152.0,0.00019997,2]
[350516009,1737939051862,-431.34005781,0.0002,2]
[350516014,1737939051947,-7779.46507271,0.0002,2]
[350516015,1737939051959,-2110.89590305,0.0002,2]
[350516016,1737939052159,-500.0,0.00016438,2]
[350516017,1737939052170,-500.0,0.00016438,2]
[350516018,1737939052180,-500.0,0.00016438,2]
[350516019,1737939052190,-500.0,0.00016575,2]
[350516020,1737939052200,-500.0,0.00016575,2]
[350516021,1737939052210,-500.0,0.00016712,2]
[350516022,1737939052221,-637.74,0.00016849,2]
[350516023,1737939052231,-74668.93775659,0.0002,2]
[350516024,1737939052252,-83931.17409711,0.0002,2]
[350516025,1737939052285,-151.0,0.000189,2]
[350516026,1737939052295,-411714.24654004,0.0002,2]
[350516027,1737939052307,-1664.86983028,0.0002,2]
[350516028,1737939052394,-10225.0,0.0002,2]
[350516029,1737939052406,-1413.76211461,0.0002,2]
[350516030,1737939052418,-3229.0620703,0.0002,2]
[350516031,1737939052430,-126200.8822444,0.0002,2]
[350516032,1737939052442,-719.1343972,0.0002,2]
[350516033,1737939052553,-546.72,0.00016438,2]
[350516034,1737939052563,-454.18,0.0002,2]
[350516035,1737939052575,-8898.45243793,0.0002,2]
[350516036,1737939052587,-1793.3775496,0.0002,2]
[350516037,1737939052599,-2045.0,0.0002,2]
[350516038,1737939052611,-5111.62199,0.0002,2]
[350516039,1737939052622,-26071.82343303,0.0002,2]
[350516040,1737939052634,-2977.79190184,0.0002,2]
[350516041,1737939052646,-3911.54346984,0.0002,2]
[350516042,1737939052664,-411.04,0.00016438,2]
[350516043,1737939052676,-88.96,0.00016438,2]
[350516044,1737939052686,-330.85826451,0.0002,2]
[350516045,1737939052698,-510.00802265,0.0002,2]
[350516066,1737939701162,164.808052,0.00013973,2]
[350516068,1737940050134,-178.076438,0.00015299,2]
[350516069,1737940050161,-300.0,0.00015452,2]
[350516070,1737940050183,-62.2460028,0.000155,2]
[350516089,1737940232580,-300.0,0.00015608,2]
[350516090,1737940232590,-2964.65671956,0.00015609,2]
[350516091,1737940232637,-8734.74719924,0.00015609,2]
[350516092,1737940232646,-165.41267656,0.00016338,2]
[350516093,1737940232655,-297.98130536,0.00016438,2]
[350516094,1737940232664,-500.0,0.00016438,2]
[350516095,1737940232673,-502.62323616,0.00016438,2]
[350516096,1737940232681,-611.12736375,0.00016438,2]
[350516097,1737940232690,-368.53935578,0.00016438,2]
[350516098,1737940232699,-500.0,0.00016438,2]
[350516099,1737940232709,-500.0,0.00016438,2]
[350516100,1737940232718,-500.0,0.00016438,2]
[350516101,1737940232727,-500.0,0.00016438,2]
[350516102,1737940232736,-500.0,0.00016438,2]
[350516103,1737940232745,-500.0,0.00016438,2]
[350516104,1737940232754,-500.0,0.00016438,2]
[350516105,1737940232764,-500.0,0.00016438,2]
[350516106,1737940232773,-500.0,0.00016438,2]
[350516107,1737940232782,-281.86766521,0.00016438,2]
[350516108,1737940232791,-500.0,0.00016438,2]
[350516109,1737940232800,-500.0,0.00016438,2]
[350516110,1737940232811,-500.0,0.00016438,2]
[350516111,1737940232821,-500.0,0.00016438,2]
[350516112,1737940232829,-500.0,0.00016438,2]
[350516113,1737940232838,-509.13,0.00016438,2]
[350516114,1737940232849,-500.0,0.00016438,2]
[350516115,1737940232859,-500.0,0.00016438,2]
[350516116,1737940232868,-500.0,0.00016438,2]
[350516117,1737940232877,-549.28557075,0.00016438,2]
[350516118,1737940232887,-500.0,0.00016438,2]
[350516119,1737940232897,-500.0,0.00016438,2]
[350516120,1737940232908,-500.0,0.00016438,2]
[350516121,1737940232918,-500.0,0.00016438,2]
[350516122,1737940232927,-500.0,0.00016438,2]
[350516123,1737940232936,-500.0,0.00016438,2]
[350516124,1737940232945,-500.0,0.00016438,2]
[350516125,1737940232954,-436.62868547,0.00016438,2]
[350516126,1737940232964,-500.0,0.00016438,2]
[350516127,1737940232973,-510.83626275,0.00016438,2]
[350516128,1737940232982,-500.0,0.00016438,2]
[350516129,1737940232992,-500.0,0.00016438,2]
[350516130,1737940233002,-500.0,0.00016438,2]
[350516131,1737940233012,-181.49258983,0.00016438,2]
[350516132,1737940233021,-500.0,0.00016438,2]
[350516133,1737940233031,-639.30018871,0.00016438,2]
[350516134,1737940233041,-455.70709484,0.00016438,2]
[350516135,1737940233051,-500.0,0.00016438,2]
[350516136,1737940233060,-500.0,0.00016438,2]
[350516137,1737940233071,-500.0,0.00016438,2]
[350516138,1737940233081,-500.0,0.00016438,2]
[350516139,1737940233091,-500.0,0.00016438,2]
[350516140,1737940233101,-500.0,0.00016438,2]
[350516141,1737940233111,-500.0,0.00016438,2]
[350516142,1737940233121,-500.0,0.00016438,2]
[350516143,1737940233131,-500.0,0.00016438,2]
[350516144,1737940233140,-500.0,0.00016438,2]
[350516145,1737940233150,-500.0,0.00016438,2]
[350516146,1737940233161,-500.0,0.00016438,2]
[350516147,1737940233170,-500.0,0.00016438,2]
[350516148,1737940233180,-500.0,0.00016438,2]
[350516149,1737940233189,-500.0,0.00016438,2]
[350516150,1737940233198,-500.0,0.00016438,2]
[350516151,1737940233208,-500.0,0.00016438,2]
[350516152,1737940233217,-500.0,0.00016438,2]
[350516153,1737940233226,-500.0,0.00016438,2]
[350516154,1737940233235,-500.0,0.00016438,2]
[350516155,1737940233244,-500.0,0.00016438,2]
[350516156,1737940233253,-500.0,0.00016438,2]
[350516157,1737940233263,-500.0,0.00016438,2]
[350516158,1737940233272,-500.0,0.00016438,2]
[350516159,1737940233282,-500.0,0.00016438,2]
[350516160,1737940233291,-500.0,0.00016438,2]
[350516161,1737940233301,-500.0,0.00016438,2]
[350516162,1737940233311,-500.0,0.00016438,2]
[350516163,1737940233320,-363.49508087,0.00016438,2]
[350516164,1737940233329,-500.0,0.00016438,2]
[350516165,1737940233339,-500.0,0.00016438,2]
[350516166,1737940233348,-500.0,0.00016438,2]
[350516167,1737940233357,-500.0,0.00016438,2]
[350516168,1737940233367,-502.82979385,0.00016438,2]
[350516169,1737940233376,-500.0,0.00016438,2]
[350516170,1737940233386,-500.0,0.00016438,2]
[350516171,1737940233395,-500.0,0.00016438,2]
[350516172,1737940233405,-500.0,0.00016438,2]
[350516173,1737940233414,-500.0,0.00016438,2]
[350516174,1737940233424,-500.0,0.00016438,2]
[350516175,1737940233433,-500.0,0.00016438,2]
[350516176,1737940233443,-500.0,0.00016438,2]
[350516177,1737940233453,-500.0,0.00016438,2]
[350516178,1737940233462,-500.0,0.00016438,2]
[350516179,1737940233472,-500.0,0.00016438,2]
[350516180,1737940233481,-500.0,0.00016438,2]
[350516181,1737940233491,-240.72,0.00016438,2]
[350516182,1737940233501,-500.0,0.00016438,2]
[350516183,1737940233510,-500.0,0.00016438,2]
[350516184,1737940233520,-207.7,0.00016438,2]
[350516185,1737940233529,-500.0,0.00016438,2]
[350516186,1737940233539,-632.71,0.00016438,2]
[350516187,1737940233549,-500.0,0.00016438,2]
[350516188,1737940233558,-500.0,0.00016438,2]
[350516189,1737940233568,-500.0,0.00016438,2]
[350516190,1737940233578,-500.0,0.00016438,2]
[350516191,1737940233588,-500.0,0.00016438,2]
[350516192,1737940233598,-500.0,0.00016438,2]
[350516193,1737940233607,-500.0,0.00016438,2]
[350516194,1737940233617,-500.0,0.00016438,2]
[350516195,1737940233627,-500.0,0.00016438,2]
[350516196,1737940233637,-500.0,0.00016438,2]
[350516197,1737940233646,-500.0,0.00016438,2]
[350516198,1737940233659,-500.0,0.00016438,2]
[350516199,1737940233669,-626.68,0.00016438,2]
[350516200,1737940233679,-500.0,0.00016438,2]
[350516201,1737940233689,-500.0,0.00016438,2]
[350516202,1737940233698,-500.0,0.00016438,2]
[350516203,1737940233708,-500.0,0.00016438,2]
[350516204,1737940233718,-500.0,0.00016438,2]
[350516205,1737940233729,-504.82,0.00016438,2]
[350516206,1737940233739,-500.0,0.00016438,2]
[350516207,1737940233750,-565.90550694,0.00016438,2]
[350516208,1737940233761,-500.0,0.00016438,2]
[350516209,1737940233771,-500.0,0.00016438,2]
[350516210,1737940233781,-500.0,0.00016438,2]
[350516211,1737940233791,-500.0,0.00016438,2]
[350516212,1737940233803,-500.0,0.00016438,2]
[350516213,1737940233816,-500.0,0.00016438,2]
[350516214,1737940233825,-500.0,0.00016438,2]
[350516215,1737940233835,-500.0,0.00016438,2]
[350516216,1737940233845,-500.0,0.00016438,2]
[350516217,1737940233857,-500.0,0.00016438,2]
[350516218,1737940233866,-500.0,0.00016438,2]
[350516219,1737940233876,-500.0,0.00016438,2]
[350516220,1737940233886,-500.0,0.00016438,2]
[350516221,1737940233897,-500.0,0.00016438,2]
[350516222,1737940233909,-500.0,0.00016438,2]
[350516223,1737940233919,-500.0,0.00016438,2]
[350516224,1737940233929,-500.0,0.00016438,2]
[350516225,1737940233939,-500.0,0.00016438,2]
[350516226,1737940233949,-500.0,0.00016438,2]
[350516227,1737940233959,-500.0,0.00016438,2]
[350516228,1737940233968,-500.0,0.00016438,2]
[350516229,1737940233978,-500.0,0.00016438,2]
[350516230,1737940233988,-500.0,0.00016438,2]
[350516231,1737940233997,-500.0,0.00016438,2]
[350516232,1737940234008,-500.0,0.00016438,2]
[350516233,1737940234018,-500.0,0.00016438,2]
[350516234,1737940234028,-500.0,0.00016438,2]
[350516235,1737940234037,-500.0,0.00016438,2]
[350516236,1737940234046,-500.0,0.00016438,2]
[350516237,1737940234057,-500.0,0.00016438,2]
[350516238,1737940234066,-500.0,0.00016438,2]
[350516239,1737940234075,-500.0,0.00016438,2]
[350516240,1737940234085,-500.0,0.00016438,2]
[350516241,1737940234095,-500.0,0.00016438,2]
[350516242,1737940234105,-572.3105872,0.00016438,2]
[350516243,1737940234115,-500.0,0.00016438,2]
[350516244,1737940234124,-500.0,0.00016438,2]
[350516245,1737940234134,-500.0,0.00016438,2]
[350516246,1737940234143,-500.0,0.00016438,2]
[350516247,1737940234152,-500.0,0.00016438,2]
[350516248,1737940234163,-500.0,0.00016438,2]
[350516249,1737940234172,-500.0,0.00016438,2]
[350516250,1737940234181,-500.0,0.00016438,2]
[350516251,1737940234190,-500.0,0.00016438,2]
[350516252,1737940234200,-500.0,0.00016438,2]
[350516253,1737940234209,-500.0,0.00016438,2]
[350516254,1737940234218,-353.98,0.00016438,2]
[350516255,1737940234227,-500.0,0.00016438,2]
[350516256,1737940234236,-500.0,0.00016438,2]
[350516257,1737940234245,-500.0,0.00016438,2]
[350516258,1737940234255,-500.0,0.00016572,2]
[350516259,1737940234265,-500.0,0.00016572,2]
[350516260,1737940234275,-500.0,0.00016572,2]
[350516261,1737940234284,-500.0,0.00016572,2]
[350516262,1737940234294,-500.0,0.00016572,2]
[350516263,1737940234303,-500.0,0.00016572,2]
[350516264,1737940234312,-500.0,0.00016572,2]
[350516265,1737940234321,-500.0,0.00016572,2]
[350516266,1737940234331,-500.0,0.00016572,2]
[350516267,1737940234340,-500.0,0.00016572,2]
[350516268,1737940234349,-500.0,0.00016572,2]
[350516269,1737940234358,-500.0,0.00016572,2]
[350516270,1737940234368,-500.0,0.00016572,2]
[350516271,1737940234377,-259.05136264,0.00016572,2]
[350516272,1737940234388,-500.0,0.00016572,2]
[350516273,1737940234397,-500.0,0.00016572,2]
[350516274,1737940234417,-500.0,0.00016572,2]
[350516275,1737940234427,-500.0,0.00016572,2]
[350516276,1737940234438,-500.0,0.00016572,2]
[350516277,1737940234448,-500.0,0.00016572,2]
[350516278,1737940234459,-500.0,0.00016572,2]
[350516279,1737940234468,-500.0,0.00016572,2]
[350516280,1737940234478,-500.0,0.00016572,2]
[350516281,1737940234488,-102.75847408,0.00016572,2]
[350516282,1737940234581,-497.24152592,0.00016572,2]
[350516283,1737940234590,-28.6760499,0.00016572,2]
[350516284,1737940234601,-471.3239501,0.00016572,2]
[350516285,1737940234610,-500.0,0.00016572,2]
[350516286,1737940234619,-140.60016794,0.00016572,2]
[350516287,1737940234631,-382.98744853,0.00016572,2]
[350516288,1737940234640,-500.0,0.00016572,2]
[350516289,1737940234649,-500.0,0.00016572,2]
[350516290,1737940234787,-500.0,0.00016572,2]
[350516291,1737940234797,-500.0,0.00016572,2]
[350516292,1737940234811,-500.0,0.00016572,2]
[350516293,1737940234822,-212.25507768,0.00016572,2]
[350516294,1737940234833,-263.30000001,0.00016572,2]
[350516329,1737940238397,-500.0,0.00016438,2]
[350516331,1737940238407,-352.5,0.00016571,2]
[350516333,1737940238418,-500.0,0.00016571,2]
[350516335,1737940238427,-500.0,0.00016571,2]
[350516337,1737940238438,-500.0,0.00016571,2]
[350516339,1737940238447,-500.0,0.00016571,2]
[350516341,1737940238456,-223.71730867,0.00016571,2]
[350516343,1737940238465,-500.0,0.00016571,2]
[350516345,1737940238474,-500.0,0.00016571,2]
[350516347,1737940238483,-500.0,0.00016571,2]
[350516349,1737940238492,-500.0,0.00016571,2]
[350516351,1737940238502,-500.0,0.00016571,2]
[350516353,1737940238511,-500.0,0.00016571,2]
[350516355,1737940238521,-500.0,0.00016571,2]
[350516357,1737940238530,-500.0,0.00016571,2]
[350516359,1737940238539,-500.0,0.00016571,2]
[350516361,1737940238548,-500.0,0.00016571,2]
[350516363,1737940238557,-500.0,0.00016571,2]
[350516365,1737940238566,-500.0,0.00016571,2]
[350516367,1737940238575,-566.04300502,0.00016571,2]
[350516369,1737940238584,-268.97572586,0.00016571,2]
[350516371,1737940238593,-500.0,0.00016571,2]
[350516373,1737940238602,-500.0,0.00016571,2]
[350516375,1737940238611,-500.0,0.00016574,2]
[350516377,1737940238620,-206.02557801,0.00016575,2]
[350516379,1737940238629,-500.00000001,0.00016575,2]
[350516381,1737940238638,-500.0,0.00016575,2]
[350516383,1737940238647,-500.0,0.00016575,2]
[350516385,1737940238657,-173.16,0.00016575,2]
[350516387,1737940238667,-500.0,0.00016575,2]
[350516389,1737940238676,-577.18360982,0.00016575,2]
[350516391,1737940238685,-277.7,0.00016575,2]
[350516393,1737940238695,-632.71,0.00016575,2]
[350516395,1737940238704,-500.0,0.00016575,2]
[350516397,1737940238713,-500.0,0.00016575,2]
[350516399,1737940238722,-500.0,0.00016575,2]
[350516401,1737940238731,-500.0,0.00016575,2]
[350516403,1737940238740,-500.0,0.00016575,2]
[350516405,1737940238750,-500.0,0.00016575,2]
[350516407,1737940238759,-500.0,0.00016575,2]
[350516409,1737940238768,-500.0,0.00016575,2]
[350516411,1737940238777,-500.0,0.00016575,2]
[350516413,1737940238787,-500.0,0.00016575,2]
[350516415,1737940238796,-500.0,0.00016575,2]
[350516417,1737940238807,-500.0,0.00016575,2]
[350516419,1737940238820,-500.0,0.00016575,2]
[350516421,1737940238830,-500.0,0.00016575,2]
[350516423,1737940238841,-500.0,0.00016575,2]
[350516425,1737940238853,-500.0,0.00016575,2]
[350516427,1737940238863,-500.0,0.00016575,2]
[350516429,1737940238872,-500.0,0.00016575,2]
[350516431,1737940238881,-500.0,0.00016575,2]
[350516433,1737940238892,-500.0,0.00016575,2]
[350516435,1737940238902,-500.0,0.00016575,2]
[350516437,1737940238913,-500.0,0.00016575,2]
[350516439,1737940238926,-500.0,0.00016575,2]
[350516441,1737940238936,-500.0,0.00016575,2]
[350516443,1737940238945,-500.0,0.00016575,2]
[350516445,1737940238955,-500.0,0.00016575,2]
[350516447,1737940238965,-507.64,0.00016575,2]
[350516449,1737940238979,-500.0,0.00016575,2]
[350516451,1737940238989,-632.71,0.00016712,2]
[350516453,1737940238998,-500.0,0.00016712,2]
[350516455,1737940239008,-500.0,0.00016712,2]
[350516457,1737940239017,-571.22379249,0.00016712,2]
[350516459,1737940239027,-500.0,0.00016712,2]
[350516461,1737940239037,-500.0,0.00016712,2]
[350516463,1737940239046,-500.0,0.00016712,2]
[350516465,1737940239055,-500.0,0.00016712,2]
[350516467,1737940239065,-500.0,0.00016712,2]
[350516469,1737940239074,-500.0,0.00016712,2]
[350516471,1737940239083,-500.0,0.00016712,2]
[350516473,1737940239093,-500.0,0.00016712,2]
[350516475,1737940239104,-340.98,0.00016712,2]
[350516477,1737940239113,-500.0,0.00016712,2]
[350516479,1737940239123,-500.0,0.00016712,2]
[350516481,1737940239132,-500.0,0.00016712,2]
[350516483,1737940239141,-500.0,0.00016712,2]
[350516485,1737940239150,-500.0,0.00016712,2]
[350516487,1737940239159,-500.0,0.00016712,2]
[350516489,1737940239173,-500.0,0.00016712,2]
[350516491,1737940239182,-500.0,0.00016712,2]
[350516493,1737940239191,-500.0,0.00016848,2]
[350516495,1737940239200,-632.71,0.00016849,2]
[350516497,1737940239210,-500.0,0.00016849,2]
[350516499,1737940239219,-500.0,0.00016849,2]
[350516501,1737940239228,-372.58,0.00016849,2]
[350516503,1737940239237,-500.0,0.00016849,2]
[350516505,1737940239247,-555.73,0.00016849,2]
[350516507,1737940239256,-500.0,0.00016849,2]
[350516509,1737940239265,-500.0,0.00016849,2]
[350516511,1737940239274,-500.0,0.00016849,2]
[350516513,1737940239283,-500.0,0.00016849,2]
[350516515,1737940239292,-500.0,0.00016849,2]
[350516517,1737940239301,-500.0,0.00016849,2]
[350516519,1737940239310,-500.0,0.00016849,2]
[350516521,1737940239319,-500.0,0.00016849,2]
[350516523,1737940239328,-520.93,0.00016849,2]
[350516525,1737940239337,-500.0,0.00016849,2]
[350516527,1737940239346,-500.0,0.00016849,2]
[350516529,1737940239355,-500.0,0.00016849,2]
[350516531,1737940239364,-632.71,0.00016986,2]
[350516533,1737940239374,-500.0,0.00016986,2]
[350516535,1737940239382,-610.50935701,0.00016986,2]
[350516537,1737940239392,-500.0,0.00016986,2]
[350516539,1737940239401,-500.0,0.00016986,2]
[350516541,1737940239410,-500.0,0.00016986,2]
[350516543,1737940239422,-500.0,0.00016986,2]
[350516546,1737940239433,-261.0780792,0.00016986,2]
[350516548,1737940239442,-437.4,0.00016986,2]
[350516550,1737940239457,-500.0,0.00016986,2]
[350516552,1737940239466,-500.0,0.00016986,2]
[350516554,1737940239476,-500.0,0.00016986,2]
[350516556,1737940239486,-175.13658105,0.00016986,2]
[350516558,1737940239495,-500.0,0.00016986,2]
[350516560,1737940239504,-500.0,0.00016986,2]
[350516562,1737940239515,-431.55800222,0.00017122,2]
[350516564,1737940239524,-257.18019374,0.00017122,2]
[350516566,1737940239534,-500.0,0.00017122,2]
[350516568,1737940239543,-632.71,0.00017123,2]
[350516570,1737940239552,-500.0,0.00017123,2]
[350516572,1737940239561,-500.0,0.00017123,2]
[350516574,1737940239570,-500.0,0.00017123,2]
[350516576,1737940239578,-500.0,0.00017123,2]
[350516578,1737940239587,-500.0,0.00017123,2]
[350516579,1737940239597,-533.64,0.00017123,2]
[350516581,1737940239606,-500.0,0.00017123,2]
[350516583,1737940239616,-500.0,0.00017123,2]
[350516586,1737940239625,-487.88,0.00017123,2]
[350516587,1737940239635,-500.0,0.00017123,2]
[350516590,1737940239645,-500.0,0.00017259,2]
[350516592,1737940239655,-632.71,0.0001726,2]
[350516594,1737940239665,-500.0,0.0001726,2]
[350516596,1737940239674,-500.0,0.0001726,2]
[350516598,1737940239684,-500.0,0.0001726,2]
[350516600,1737940239692,-500.0,0.0001726,2]
[350516602,1737940239702,-500.0,0.0001726,2]
[350516604,1737940239711,-500.0,0.0001726,2]
[350516606,1737940239721,-500.0,0.0001726,2]
[350516608,1737940239730,-500.0,0.0001726,2]
[350516610,1737940239739,-632.71,0.00017397,2]
[350516612,1737940239749,-500.0,0.00017397,2]
[350516614,1737940239762,-500.0,0.00017397,2]
[350516616,1737940239771,-500.0,0.00017397,2]
[350516618,1737940239780,-500.0,0.00017397,2]
[350516621,1737940239789,-500.0,0.00017397,2]
[350516623,1737940239800,-526.12522812,0.00017397,2]
[350516625,1737940239809,-500.0,0.00017397,2]
[350516626,1737940239821,-500.0,0.00017397,2]
[350516628,1737940239830,-632.71,0.00017534,2]
[350516630,1737940239840,-500.0,0.00017534,2]
[350516632,1737940239849,-500.0,0.00017534,2]
[350516634,1737940239860,-500.0,0.00017534,2]
[350516636,1737940239869,-500.0,0.00017534,2]
[350516638,1737940239878,-500.0,0.00017534,2]
[350516640,1737940239887,-500.0,0.00017534,2]
[350516642,1737940239898,-500.0,0.00017534,2]
[350516645,1737940239907,-500.0,0.00017669,2]
[350516647,1737940239917,-632.71,0.00017671,2]
[350516649,1737940239926,-500.0,0.00017671,2]
[350516651,1737940239935,-356.83,0.00017671,2]
[350516653,1737940239945,-500.0,0.00017671,2]
[350516655,1737940239954,-648.22665823,0.00017671,2]
[350516657,1737940239964,-500.0,0.00017671,2]
[350516659,1737940239973,-500.0,0.00017671,2]
[350516661,1737940239982,-500.0,0.00017671,2]
[350516663,1737940239991,-7458.15634357,0.000177,2]
[350516665,1737940240001,-632.71,0.00017808,2]
[350516667,1737940240010,-500.0,0.00017808,2]
[350516669,1737940240019,-368.86,0.00017808,2]
[350516671,1737940240029,-500.0,0.00017808,2]
[350516673,1737940240038,-500.0,0.00017808,2]
[350516675,1737940240048,-395.0,0.00017895,2]
[350516677,1737940240057,-205.48825183,0.000179,2]
[350516679,1737940240067,-2109.23,0.000179,2]
[350516681,1737940240076,-300.0,0.000179,7]
[350516683,1737940240085,-632.71,0.00017945,2]
[350516685,1737940240094,-500.0,0.00017945,2]
[350516687,1737940240104,-500.0,0.00017945,2]
[350516689,1737940240113,-496.34,0.00017945,2]
[350516691,1737940240123,-205.48825167,0.00018079,2]
[350516693,1737940240132,-500.0,0.0001808,2]
[350516695,1737940240142,-632.71,0.00018082,2]
[350516697,1737940240152,-622.53,0.00018082,2]
[350516699,1737940240161,-500.0,0.00018082,2]
[350516701,1737940240176,-500.0,0.00018164,2]
[350516703,1737940240185,-1200.0,0.00018173,2]
[350516705,1737940240195,-632.71,0.00018219,2]
[350516707,1737940240205,-500.0,0.00018219,2]
[350516709,1737940240216,-205.48825167,0.00018257,2]
[350516712,1737940240226,-632.71,0.00018356,2]
[350516714,1737940240236,-500.0,0.00018356,2]
[350516716,1737940240246,-205.48825167,0.00018436,2]
[350516718,1737940240255,-632.71,0.00018493,2]
[350516720,1737940240265,-500.0,0.00018493,2]
[350516722,1737940240274,-181.628,0.00018496,2]
[350516724,1737940240283,-205.48825167,0.00018614,2]
[350516726,1737940240292,-632.71,0.0001863,2]
[350516728,1737940240302,-500.0,0.0001863,2]
[350516730,1737940240311,-632.71,0.00018767,2]
[350516732,1737940240321,-500.0,0.00018767,2]
[350516734,1737940240330,-205.48825167,0.00018793,2]
[350516736,1737940240339,-151.0,0.000189,2]
[350516738,1737940240348,-281.765309,0.000189,2]
[350516740,1737940240358,-151.0,0.000189,2]
[350516742,1737940240367,-5196.45882378,0.000189,2]
[350516744,1737940240376,-500.0,0.00018903,2]
[350516746,1737940240385,-632.71,0.00018904,2]
[350516747,1737940240395,-500.0,0.00018904,2]
[350516750,1737940240404,-205.48825167,0.00018971,2]
[350516752,1737940240414,-151.0,0.00019,2]
[350516753,1737940240424,-151.0,0.00019,2]
[350516755,1737940240434,-151.0,0.00019,2]
[350516757,1737940240444,-302.8788636,0.00019,2]
[350516759,1737940240453,-302.90913937,0.00019,2]
[350516761,1737940240463,-632.71,0.00019041,2]
[350516763,1737940240472,-500.0,0.00019041,2]
[350516765,1737940240481,-151.0,0.000191,2]
[350516767,1737940240491,-205.48825167,0.0001915,2]
[350516769,1737940240500,-632.71,0.00019178,2]
[350516771,1737940240510,-500.0,0.00019178,7]
[350516773,1737940240520,-500.0,0.00019178,2]
[350516775,1737940240529,-302.8788636,0.0001919,2]
[350516778,1737940240539,-302.90913937,0.0001919,2]
[350516780,1737940240549,-151.0,0.000193,2]
[350516782,1737940240558,-632.71,0.00019315,2]